Cogmind - Beta 13 @@@ ROGUE MODE // 2024.03.21 @ 18:43:20 Player: Oldman Pu Result: Destroyed by 8T-NRE(R) with Subdweller Machine Gun Performance ------------- Evolutions (0) 0 Regions Visited (2) 400 Robots Destroyed (23) 115 Value Destroyed (501) 501 Prototype IDs (0) 0 Alien Tech Used (0) 0 Bonus (0) 0 TOTAL SCORE: 1016 Bonus ------- None Cogmind --------- Core Integrity 0/250 Matter 284/300 Energy 250/250 System Corruption 2% Temperature Cool (0) Movement Rolling (95) Ox1 Location -10/Subcaves Parts ------- > --- POWER (1) -------- Ion Engine > --- PROPULSION (2) --- Wheel Wheel > --- UTILITY (2) ------ Large Storage Unit Light Armor Plating > --- WEAPON (2) ------- Autogun Autogun (fused) > --- INVENTORY (15) --- Ion Engine Light Ion Engine Wheel High-capacity Battery (250) Large Matter Pod (150) Light Armor Plating Shield Generator Beam Cannon Beam Cannon Autogun Autogun Subdweller Machine Gun Subdweller Machine Gun Light Cannon Battle Cannon Peak State ------------ > --- POWER ------------ Ion Engine > --- PROPULSION ------- Wheel Wheel > --- UTILITY ---------- Large Storage Unit Light Armor Plating > --- WEAPON ----------- Autogun Autogun > --- INVENTORY -------- Ion Engine Light Ion Engine Wheel High-capacity Battery Large Matter Pod Light Armor Plating Shield Generator Beam Cannon Beam Cannon Autogun Autogun Subdweller Machine Gun Subdweller Machine Gun Light Cannon Battle Cannon [Rating: 11] Favorites ----------- Power Ion Engine Engine Ion Engine Propulsion Wheel Leg Aluminum Leg Wheel Wheel Utility Large Storage Unit Storage Large Storage Unit Protection Light Armor Plating Weapon Autogun Ballistic Gun Autogun Build | -11 -10 -10 ------- Run | Yrd Mat Sub Slots Evolved . | . . . Power . | . . . Propulsion . | . . . Utility . | . . . Weapon . | . . . Parts Attached 22 | 8 12 2 Power 2 | 1 1 . Engine 2 | 1 1 . Core . | . . . Reactor . | . . . Propulsion 9 | 4 4 1 Treads . | . . . Leg 2 | 2 . . Wheel 7 | 2 4 1 Hover . | . . . Flight . | . . . Utility 6 | 1 4 1 Device . | . . . Storage 3 | 1 2 . Processor . | . . . Hackware . | . . . Protection 3 | . 2 1 Artifact . | . . . Weapon 5 | 2 3 . Energy Gun . | . . . Energy Cannon . | . . . Ballistic Gun 5 | 2 3 . Ballistic Cannon . | . . . Launcher . | . . . Special Weapon . | . . . Impact Weapon . | . . . Slashing Weapon . | . . . Piercing Weapon . | . . . Special Melee Weapon . | . . . Unidentified Prototypes . | . . . Parts Lost 3 | . 1 2 Power . | . . . Propulsion 2 | . 1 1 Utility 1 | . . 1 Weapon . | . . . Highest Loss Streak 2 | . 1 2 To Critical Strikes . | . . . Average Slot Usage (%) 99 | . 98 100 Engine 14 | . 14 14 Leg 3 | . 5 . Wheel 23 | . 22 28 Storage 15 | . 15 14 Protection 12 | . 11 14 Ballistic Gun 28 | . 28 28 Naked Turns . | . . . Heaviest Build 34 | 10 34 34 Greatest Support 26 | 20 26 26 Greatest Overweight (x) 3 | 3 1 1 Average Overweight (x) . | 1 . 1 Largest Inventory Capacity 15 | 8 15 15 Average Capacity 14 | 7 14 15 Most Carried 15 | 2 15 15 Average Carried 11 | . 10 14 Final Capacity 15 | 8 15 15 Final Carried 15 | 2 15 15 Class Distribution -------------------- 100% | Mutant Dominant Class ---------------- Mutant | -10/Materials Mutant | -10/Subcaves Resources | -11 -10 -10 ----------- Run | Yrd Mat Sub Matter Collected 826 | 202 506 118 Remotely . | . . . Salvage Created 796 | . 582 214 Parts 55 | . 39 16 Haulers Intercepted 2 | . 2 . Recyclers Shooed . | . . . Parts Field Recycled . | . . . Retrieved Matter . | . . . Parts Self-Destructed 5 | . . 5 Prevented . | . . . Kills | -11 -10 -10 ------- Run | Yrd Mat Sub Combat Hostiles Destroyed 16 | . 12 4 Guns 16 | . 12 4 Classes Destroyed 8 | . 6 2 Worker 1 | . 1 . Hauler 2 | . 2 . Recycler 1 | . 1 . Watcher 3 | . 3 . Swarmer 6 | . 6 . Grunt 6 | . 6 . Sentry 1 | . . 1 Subdweller 3 | . . 3 Best Kill Streak 4 | . 4 2 Combat Bots Only 3 | . 3 2 Max Kills in Single Turn 1 | . 1 1 Gunslinging . | . . . Exploded . | . . . Melee . | . . . Uniques/NPCs Destroyed . | . . . Combat | -11 -10 -10 -------- Run | Yrd Mat Sub Hostile Shots Fired 76 | . 55 21 Missed 19 | . 10 9 Damage Taken 904 | . 456 448 Core 254 | . 156 98 Absorbed by Shields . | . . . Regen/Repaired (Parts) 105 | . 105 . Core Remaining (%) 100 | 100 . . Volleys Fired 85 | . 72 13 Largest 2 | . 2 2 Hottest 46 | . 46 46 Shots Fired 159 | . 133 26 Gun 159 | . 133 26 Cannon . | . . . Launcher . | . . . Special . | . . . Kinetic 159 | . 133 26 Thermal . | . . . Explosive . | . . . Electromagnetic . | . . . Robot Hit Streak 9 | . 9 8 Robot Miss Streak 6 | . 6 3 Penetration Max . | . . . Secondary Targets 4 | . 3 1 Max Gunslinging Chain 1 | . 1 1 Shots Hit Robots 94 | . 75 19 Core Hits 42 | . 33 9 Critical Kills 1 | . 1 . Critical Parts Destroyed 1 | . 1 . Critical Strikes 2 | . 2 . Destroy 2 | . 2 . Melee Attacks . | . . . Impact . | . . . Slashing . | . . . Piercing . | . . . Sneak Attacks . | . . . Combat Hostiles . | . . . Follow-up Attacks . | . . . Damage Inflicted 943 | . 652 291 Guns 943 | . 652 291 Cannons . | . . . Explosions . | . . . Melee . | . . . Ramming . | . . . Kinetic 943 | . 652 291 Thermal . | . . . Explosive . | . . . Electromagnetic . | . . . Impact . | . . . Slashing . | . . . Piercing . | . . . Highest Corruption 2 | . 2 2 Average Corruption 1 | . 1 2 Corruption Purged . | . . . Corruption Blocked . | . . . Effects 13 | . 8 5 Message Errors 4 | . 3 1 Matter Fused 1 | . 1 . Heat Flow Errors 2 | . . 2 Energy Discharges 3 | . 1 2 Parts Fused 1 | . 1 . Data Loss (minor) 1 | . 1 . Weapon Failures 1 | . 1 . Overload Shots . | . . . Overflow Damage . | . . . Projectiles . | . . . Explosions . | . . . Melee . | . . . Knockbacks . | . . . Impact . | . . . Kinetic . | . . . Secondary . | . . . Self-Inflicted Damage . | . . . Shots . | . . . Rammed 1 | . 1 . Targets Rammed 1 | . 1 . Kicked . | . . . Crushed . | . . . Highest Temperature 219 | . 43 219 Average Temperature 23 | . 11 111 Received Heat Transfer 177 | . 168 9 Siege Activations . | . . . Robots Corrupted . | . . . Combat Hostiles . | . . . Parts Fried . | . . . Impact Corruptions . | . . . Robots Melted . | . . . Combat Hostiles . | . . . Parts Melted . | . . . Heat Transferred . | . . . Parts Sabotaged . | . . . Parts Stolen . | . . . Parts Stripped . | . . . Power Chain Reactions . | . . . Alert | -11 -10 -10 ------- Run | Yrd Mat Sub Peak Influence 239 | . 239 . Initial . | . . . Average 71 | . 77 . Maximum Alert Level 1 | . 1 . Low Security (%) 91 | 100 91 . Level 1 8 | . 8 . Level 2 . | . . . Level 3 . | . . . Level 4 . | . . . Level 5 . | . . . High Security . | . . . Max Security . | . . . Squads Dispatched 2 | . 2 . Investigation 1 | . 1 . Extermination . | . . . Reinforcement 1 | . 1 . Assault . | . . . Garrison . | . . . Intercept . | . . . Searches Triggered . | . . . Construction Impeded . | . . . Haulers Reinforced . | . . . Active Scanning Responses . | . . . Cargo Convoy Interrupts . | . . . Stealth | -11 -10 -10 --------- Run | Yrd Mat Sub Distress Signals . | . . . Communications Jammed . | . . . Distress Signals . | . . . Times Spotted 26 | . 21 5 Peak Tracking Total 5 | . 5 2 Tactical Retreats . | . . . Traps | -11 -10 -10 ------- Run | Yrd Mat Sub Traps Triggered 7 | . 3 4 Indirectly . | . . . Trap Hack Attempts . | . . . Triggered . | . . . Disarmed 7 | . 7 . Reprogrammed . | . . . Reused . | . . . Traps Extracted . | . . . Installed . | . . . Triggered . | . . . Machines | -11 -10 -10 ---------- Run | Yrd Mat Sub Machines Disabled . | . . . Max in Single Turn . | . . . Machines Repaired . | . . . Machines Dismantled . | . . . Machines Sabotaged . | . . . Overloaded Fab Kills . | . . . Hacking | -11 -10 -10 --------- Run | Yrd Mat Sub Machines Accessed 10 | . 10 . Terminals 7 | . 7 . Fabricators . | . . . Repair Stations 1 | . 1 . Recycling Units 2 | . 2 . Scanalyzers . | . . . Garrison Access . | . . . Total Hacks 29 | . 29 . Successful 16 | . 16 . Failed 13 | . 13 . Catastrophic 3 | . 3 . Database Lockouts . | . . . Manual . | . . . Terminals 22 | . 22 . Fabricators . | . . . Repair Stations 5 | . 5 . Recycling Units 2 | . 2 . Scanalyzers . | . . . Garrison Access . | . . . Terminal Hacks 10 | . 10 . Emergency Access Points 1 | . 1 . Unreport Threat 1 | . 1 . Locate Traps 3 | . 3 . Disarm Traps 2 | . 2 . Recall Reinforcements 1 | . 1 . Registered Components 1 | . 1 . Zone Layout 1 | . 1 . Fabricator Hacks . | . . . Repair Station Hacks 4 | . 4 . Scan Component 2 | . 2 . Repair 2 | . 2 . Recycling Unit Hacks 2 | . 2 . Report Inventory 2 | . 2 . Scanalyzer . | . . . Garrison Access Hacks . | . . . Unauthorized Hacks . | . . . Terminals . | . . . Fabricators . | . . . Repair Stations . | . . . Recycling Units . | . . . Scanalyzers . | . . . Garrison Access . | . . . Data Cores Recovered . | . . . Used . | . . . Hacking Detections 5 | . 5 . Full Trace Events 2 | . 2 . Feedback Events . | . . . Feedback Blocked . | . . . Robot Schematics Acquired . | . . . Robots Built . | . . . Authchips . | . . . Time . | . . . Total Robot Build Rating . | . . . Part Schematics Acquired . | . . . Parts Built . | . . . Authchips . | . . . Time . | . . . Total Part Build Rating . | . . . Parts Repaired 2 | . 2 . Time 52 | . 52 . Parts Recycled . | . . . Recycled Matter . | . . . Retrieved Matter . | . . . Retrieved Components . | . . . Parts Scanalyzed . | . . . Part Schematics Acquired . | . . . Parts Damaged . | . . . Bothacking | -11 -10 -10 ------------ Run | Yrd Mat Sub Used RIF Installer . | . . . Robots Hacked . | . . . Non-combat . | . . . Combat . | . . . Robot Hacks Applied . | . . . Relay Couplers Released . | . . . Fabnet Peak Effective % . | . . . Robots Rewired . | . . . Allies Hacked . | . . . Hacks Repelled . | . . . Allies | -11 -10 -10 -------- Run | Yrd Mat Sub Total Allies . | . . . Largest Group . | . . . Highest-Rated Group . | . . . Highest-Rated Ally . | . . . Total Orders . | . . . Ally Attacks . | . . . Total Damage . | . . . Kills . | . . . Allies Corrupted . | . . . Allies Melted . | . . . Intel | -11 -10 -10 ------- Run | Yrd Mat Sub Robot Analysis Total . | . . . Derelict Logs Recovered 2 | . . 2 Drone Launches . | . . . Drone Recoveries . | . . . Exploration | -11 -10 -10 ------------- Run | Yrd Mat Sub Turns Passed 1885 | 95 1235 555 Spaces Moved 1342 | 58 788 496 Core 37 | 37 . . Treads . | . . . Legs 135 | 21 114 . Wheels 1170 | . 674 496 Hover . | . . . Flight . | . . . Fastest Speed 50 | 50 95 95 Average Speed 109 | 141 111 101 Slowest Speed 200 | 200 190 105 Overloaded Moves . | . . . Propulsion Burnouts . | . . . Robots Hopped . | . . . Cave-ins Triggered . | . . . Exploration Rate (%) 41 | 3 97 25 Regions Visited 2 Branch Regions 1 Pre-discovered Areas 1 | . . 1 Known Exits Taken . | . . . Unknown Exits Taken 2 | 1 1 . Scrap Searched 4 | . . 4 Spaces Dug . | . . . Terrain Destroyed . | . . . Melee . | . . . Projectile . | . . . AOE . | . . . Terrain Rammed . | . . . Walls Destroyed . | . . . Machines Disabled . | . . . Actions | -11 -10 -10 --------- Run | Yrd Mat Sub Total 1625 | 67 1035 523 Wait 144 | . 136 8 Move 1340 | 57 787 496 Hop . | . . . Pick Up 23 | 2 18 3 Fast Attach 10 | 6 4 . Attach 3 | . 1 2 Detach . | . . . Swap 9 | 2 7 . Drop 10 | . 9 1 Fire 85 | . 72 13 Melee . | . . . Ram 1 | . 1 . Kick . | . . . Crush . | . . . Escape Stasis . | . . . Rewire . | . . . Trap . | . . . Miscellaneous . | . . . Route ------- -11/Scrapyard -10/Materials (discovered 5 exits: [*Mat x3] / [*Min] / [*Sub]) -10/Subcaves History --------- Turn | Location | Event 2 | -11/Scrapyard | Met Revision 17 3 | -11/Scrapyard | Discovered new exit (range 15) 96 | -11/Scrapyard | Entered Materials 305 | -10/Materials | Build established: Mutant 347 | -10/Materials | Discovered new exit (range 16) 689 | -10/Materials | Core integrity fell below 50% 715 | -10/Materials | Discovered new exit (range 16) 921 | -10/Materials | Repaired Lgt. Armor Plating 1007 | -10/Materials | Discovered new exit (range 11) 1081 | -10/Materials | Discovered new exit (range 4) 1182 | -10/Materials | Discovered new exit (range 6) 1291 | -10/Materials | Repaired Wheel 1331 | -10/Materials | Entered Subcaves 1340 | -10/Subcaves | Learned Materials emergency access door positions 1343 | -10/Subcaves | Shifting Twisted Machinery released Sub. Beam Cannon 1362 | -10/Subcaves | Shifting Twisted Machinery released Battle Cannon 1390 | -10/Subcaves | Shifting Twisted Machinery released Sub. Beam Cannon 1674 | -10/Subcaves | Core integrity fell below 20% 1767 | -10/Subcaves | Learned location of Zion (-7) 1886 | -10/Subcaves | Destroyed by 8T-NRE(R) with Subdweller Machine Gun Last Messages --------------- 01697_ Acquired Sub. Machine Gun. 01698_ Acquired 38 matter. 01700_ Acquired Sub. Machine Gun. 01767_ Acquired derelict log, extracted data. World map updated: -7/Zion. 01780_ Searching scrap... 01780_ Found Flamer. 01780_ Found Spk. Treads. 01780_ Found 37 Matter. 01781_ Searching scrap... 01781_ Found Scrap Shield. 01781_ Found Multitool. 01781_ Found 23 Matter. 01782_ Searching scrap... 01782_ Found Sub. Power Source. 01782_ Found Battle Cannon. 01782_ Found 39 Matter. 01798_ 1JG=KXHFQZTMXAFYRTYC9G CUR5J 01879_ WT-DR0(R) destroyed. 01883_ 8T-NRE(R) affixes Scrap Shield Fragment to Scrap Shield. Map ----- +----------------------------------------------------+ | ?????????????????## ##? ##?????????????????? | | ?????????????????## #?? #??????????????????? | | ?????????????????# ##? #??????????????????? | | ?????????????????# #?## ? ????????????????? | | ?????????????????# ##??## ???????????????? | | ?????????????????# ###??? ??????????????? | | ?????????????????## #### ?????????????? | | ??????????????????# ?????????????? | | ?????????????????## ?????????????? | | ????????????????## #??????????????? | | ????????????????# #??????????????? | | ????????????????## #??????????????? | | ?????????????????# #??????????????? | | ????????????????## ##?????????????? | | ????????????????# ##????????????? | | ????????????????# #????????????? | | ????????????????## ???????????? | | ?????????????????##### # ???????????? | | ????????????????????### ## ### ??????????????? | | ???????????????????## ####??????????????????? | | ???????????????????# #???????????????????? | | ???????????????????## ####?????#????????????? | | ????????????????????## ## ### ##???????????? | | ?????????????????????## # #???????????? | | ??????????????????????# ! #??????????? | | ??????????????????????##@[ ## #???????????? | | ???????????????????????#%&##????????????????????? | | ???????????????????????&&R#?????????????????????? | | ??????????????????????? *##?????????????????????? | | ?????????????????????? #??????????????????????? | | ?????????????????????? # ??????????????????????? | | ????????????????????? ? ??????????????????????? | | ????????????????????? ? ??????????????????????? | | ???????????????????? ?#??????????????????????? | | ???????????????????? ###????????????????????????? | | ??????????????????? ???????????????????????????? | | ??????????????????? ???????????????????????????? | | ?????????????????? ????????????????????????????? | | ?????????????????? ????????????????????????????? | | ????????????????????????????????????????????????? | | ????????????????????????????????????????????????? | | ????????????????????????????????????????????????? | | ????????????????????????????????????????????????? | | ????????????????????????????????????????????????? | | ????????????????????????????????????????????????? | | ????????????????????????????????????????????????? | | ????????????????????????????????????????????????? | | ????????????????????????????????????????????????? | | ????????????????????????????????????????????????? | | ????????????????????????????????????????????????? | +----------------------------------------------------+ Best States ------------- Heat Dissipation 25 Energy Generation 10 Energy Capacity 250 Matter Stores 300 Matter Capacity 450 Sight Range 16 Terrain Scan Density 10 Armor Coverage 150 Evasion (%) 55 Item Schematics ----------------- None Robot Schematics ------------------ None Fabricated ------------ Nothing Alien Tech Used ----------------- None Achievements -------------- None Challenges ------------ None Game ------ Seed ProcessingBiocellMeganuke Manual? 0 Play Time 00:21:37 Cumulative 182.7 hours Start 2024.03.21 @ 17:24:28 End 2024.03.21 @ 18:43:20 Sessions 1 Manual Loads 0 Difficulty Rogue Special Mode None Game No. 129 Rogue 117 Adventurer 12 Explorer 0 Win Type - Total 1 Types 1/0/0/0/0/0/0/0/0 Lore% 26 Gallery% 42 Achievement% 31 Wizard Run 0 Options --------- Layout 1 ASCII 0 Keyboard 0 Movement Mouse Keybinds 0 Fullscreen 1 Font 32/SmallcapsGlow Map View 77x35 Zoom Use 0% Tactical HUD 1 Map Filters NONE Filters NONE Steam 1 RUN: 91ffaa04-59f6-4275-93a5-2f9ea04a1eba